Workbook

Sheet 비용
B1: [이벤트 이름]의 이벤트 예산 | H1: 비용
B3: 경비 합계 | G3: 예상 | H3: 실제
G4: =SUM(C11,C19,C25,C32,G11,G19,G24) -> ₩882.00 | H4: =SUM(D11,D19,D25,D32,H11,H19,H24) -> ₩333.00
B6: 사이트 | C6: 예상 | D6: 실제 | F6: 다과 | G6: 예상 | H6: 실제
B7: 장소 임대비 | C7: ₩500.00 | F7: 식비
B8: 사이트 담당자 | F8: 음료 | G8: ₩20.00
B9: 장비 | F9: 리넨 | H9: ₩20.00
B10: 테이블 및 의자 | F10: 스텝 및 사례금
B11: 요약 | C11: =SUBTOTAL(109,표1[예상]) -> ₩500.00 | D11: =SUBTOTAL(109,표1[실제]) -> ₩0.00 | F11: 요약 | G11: =SUBTOTAL(109,표3[예상]) -> ₩20.00 | H11: =SUBTOTAL(109,표3[실제]) -> ₩20.00
B13: 장식 | C13: 예상 | D13: 실제 | F13: 프로그램 | G13: 예상 | H13: 실제
B14: 꽃 | C14: ₩200.00 | D14: ₩300.00 | F14: 공연자
B15: 촛불 | F15: 스피커 | G15: ₩30.00
B16: 조명 | F16: 교통비
B17: 풍선 | F17: 호텔
B18: 종이 용품 | F18: 기타
B19: 요약 | C19: =SUBTOTAL(109,표4[예상]) -> ₩200.00 | D19: =SUBTOTAL(109,표4[실제]) -> ₩300.00 | F19: 요약 | G19: =SUBTOTAL(109,표5[예상]) -> ₩30.00 | H19: =SUBTOTAL(109,표5[실제]) -> ₩0.00
B21: 홍보 | C21: 예상 | D21: 실제 | F21: 상품 | G21: 예상 | H21: 실제
B22: 그래픽 작업 | F22: 리본/감사패/트로피
B23: 복사/인쇄 | C23: ₩20.00 | F23: 선물 | G23: ₩100.00
B24: 우편 | F24: 요약 | G24: =SUBTOTAL(109,표7[예상]) -> ₩100.00 | H24: =SUBTOTAL(109,표7[실제]) -> ₩0.00
B25: 요약 | C25: =SUBTOTAL(109,표6[예상]) -> ₩20.00 | D25: =SUBTOTAL(103,표6[실제]) -> ₩0.00
B27: 기타 | C27: 예상 | D27: 실제
B28: 전화 번호 | D28: ₩13.00
B29: 교통비 | C29: ₩12.00
B30: 사무용품
B31: 팩스 서비스
B32: 요약 | C32: =SUBTOTAL(109,표8[예상]) -> ₩12.00 | D32: =SUBTOTAL(109,표8[실제]) -> ₩13.00

Sheet 수입
B1: [이벤트 이름]의 이벤트 예산 | G1: 수입
B3: 총 수입 | F3: 예상 | G3: 실제
F4: =SUM(F11, F18, F25, F33) -> ₩1,936.00 | G4: =SUM(G11,G18,G25, G33) -> ₩1,831.00
B6: 입장객
B7: 예상 숫자 | C7: 실제 숫자 | D7: 종류 | E7: 가격 | F7: 예상 수입 | G7: 실제 수입
B8: 300 | C8: 278 | D8: 성인 @ | E8: ₩5.00 | F8: =B8*E8 -> ₩1,500.00 | G8: =C8*E8 -> ₩1,390.00
B9: 197 | C9: 195 | D9: 아동 @ | E9: ₩2.00 | F9: =B9*E9 -> ₩394.00 | G9: =C9*E9 -> ₩390.00
B10: 42 | C10: 51 | D10: 기타 @ | E10: ₩1.00 | F10: =B10*E10 -> ₩42.00 | G10: =C10*E10 -> ₩51.00
B11: 요약 | F11: =SUBTOTAL(109,표9[예상 수입]) -> ₩1,936.00 | G11: =SUBTOTAL(109,표9[실제 수입]) -> ₩1,831.00
B13: 프로그램 내 광고
B14: 예상 숫자 | C14: 실제 숫자 | D14: 종류 | E14: 가격 | F14: 예상 수입 | G14: 실제 수입
B15: 12 | D15: 표지 @ | F15: =B15*E15 -> ₩0.00 | G15: =C15*E15 -> ₩0.00
C16: 158 | D16: 반 페이지 @ | F16: =B16*E16 -> ₩0.00 | G16: =C16*E16 -> ₩0.00
B17: 4 | D17: 1/4 페이지 @ | F17: =B17*E17 -> ₩0.00 | G17: =C17*E17 -> ₩0.00
B18: 요약 | F18: =SUBTOTAL(109,표10[예상 수입]) -> ₩0.00 | G18: =SUBTOTAL(109,표10[실제 수입]) -> ₩0.00
B20: 전시자/공급업체
B21: 예상 숫자 | C21: 실제 숫자 | D21: 종류 | E21: 가격 | F21: 예상 수입 | G21: 실제 수입
B22: 23 | D22: 대형 부스 @ | F22: =B22*E22 -> ₩0.00 | G22: =C22*E22 -> ₩0.00
B23: 354 | D23: 중형 부스 @ | F23: =B23*E23 -> ₩0.00 | G23: =C23*E23 -> ₩0.00
B24: 56 | D24: 소형 부스 @ | F24: =B24*E24 -> ₩0.00 | G24: =C24*E24 -> ₩0.00
B25: 요약 | F25: =SUBTOTAL(109,표11[예상 수입]) -> ₩0.00 | G25: =SUBTOTAL(109,표11[실제 수입]) -> ₩0.00
B27: 항목 판매
B28: 예상 숫자 | C28: 실제 숫자 | D28: 종류 | E28: 가격 | F28: 예상 수입 | G28: 실제 수입
D29: 항목 @ | F29: =B29*E29 -> ₩0.00 | G29: =C29*E29 -> ₩0.00
B30: 123 | D30: 항목 @ | F30: =B30*E30 -> ₩0.00 | G30: =C30*E30 -> ₩0.00
D31: 항목 @ | F31: =B31*E31 -> ₩0.00 | G31: =C31*E31 -> ₩0.00
B32: 13 | D32: 항목 @ | F32: =B32*E32 -> ₩0.00 | G32: =C32*E32 -> ₩0.00
B33: 요약 | F33: =SUBTOTAL(109,표12[예상 수입]) -> ₩0.00 | G33: =SUBTOTAL(109,표12[실제 수입]) -> ₩0.00

Sheet 손익 계산서 요약
B1: [이벤트 이름]의 이벤트 예산 | G1: 손익
G2: 계산서 요약
C5: 예상 | D5: 실제
B6: 수입 합계 | C6: =수입!F4 -> ₩1,936.00 | D6: =수입!G4 -> ₩1,831.00
B7: 총 지출 | C7: =비용!G4 -> ₩882.00 | D7: =비용!H4 -> ₩333.00
B9: 총 이익 (또는 손실) | C9: =C6-C7 -> ₩1,054.00 | D9: =D6-D7 -> ₩1,498.00
